[Event "January 9 Early 2024"]
[Site "https://www.chess.com"]
[Date "2024.01.11"]
[Round "8"]
[White "Tulchynskyi, Feliks"]
[Black "Weetik, Vjacheslav"]
[Result "0-1"]
[Board "131"]
[TimeControl "180+1"]
[WhiteFideId "34127895"]
[BlackFideId "4153472"]
[WhiteElo "2570"]
[BlackElo "2759"]
[WhiteTeam "UKR"]
[BlackTeam "RUS"]
[WhiteClock "0:00:06"]
[BlackClock "0:00:08"]

1. d4 {[%clk 0:02:59]}  Nf6 {[%clk 0:03:00]} 2. c4 {[%clk 0:02:59]}  e6 {[%clk 0:03:00]} 3. Nf3 {[%clk 0:02:56]}  Bb4+ {[%clk 0:03:00]} 4. Bd2 {[%clk 0:02:56]}  Qe7 {[%clk 0:03:00]} 5. e3 {[%clk 0:02:54]}  b6 {[%clk 0:02:59]} 6. Bxb4 {[%clk 0:02:54]}  Qxb4+ {[%clk 0:02:59]} 7. Qd2 {[%clk 0:02:55]}  a5 {[%clk 0:02:52]} 8. a3 {[%clk 0:02:52]}  Qxd2+ {[%clk 0:02:49]} 9. Nbxd2 {[%clk 0:02:53]}  Bb7 {[%clk 0:02:42]} 10. Bd3 {[%clk 0:02:52]}  d6 {[%clk 0:02:22]} 11. O-O {[%clk 0:02:51]}  c5 {[%clk 0:02:12]} 12. b4 {[%clk 0:02:29]}  Nbd7 {[%clk 0:02:05]} 13. Rfb1 {[%clk 0:02:25]}  axb4 {[%clk 0:01:44]} 14. axb4 {[%clk 0:02:26]}  Ke7 {[%clk 0:01:44]} 15. Ne1 {[%clk 0:02:07]}  Bc6 {[%clk 0:01:31]} 16. f3 {[%clk 0:02:03]}  g5 {[%clk 0:01:25]} 17. Kf2 {[%clk 0:02:02]}  h5 {[%clk 0:01:21]} 18. Nc2 {[%clk 0:01:57]}  g4 {[%clk 0:01:08]} 19. bxc5 {[%clk 0:01:48]}  bxc5 {[%clk 0:00:58]} 20. Nb3 {[%clk 0:01:40]}  Rxa1 {[%clk 0:00:53]} 21. Rxa1 {[%clk 0:01:38]}  Rb8 {[%clk 0:00:50]} 22. Na5 {[%clk 0:01:28]}  Ba8 {[%clk 0:00:50]} 23. e4 {[%clk 0:01:16]}  cxd4 {[%clk 0:00:43]} 24. Nxd4 {[%clk 0:01:13]}  Ne5 {[%clk 0:00:41]} 25. Be2 {[%clk 0:01:13]}  Rb2 {[%clk 0:00:27]} 26. Nab3 {[%clk 0:01:05]}  Bc6 {[%clk 0:00:21]} 27. f4 {[%clk 0:00:52]}  Bxe4 {[%clk 0:00:20]} 28. fxe5 {[%clk 0:00:41]}  dxe5 {[%clk 0:00:21]} 29. Ra7+ {[%clk 0:00:40]}  Kf8 {[%clk 0:00:21]} 30. c5 {[%clk 0:00:37]}  exd4 {[%clk 0:00:16]} 31. Nxd4 {[%clk 0:00:38]}  Nd5 {[%clk 0:00:14]} 32. c6 {[%clk 0:00:26]}  e5 {[%clk 0:00:12]} 33. Ra8+ {[%clk 0:00:12]}  Kg7 {[%clk 0:00:12]} 34. Nb5 {[%clk 0:00:08]}  Rc2 {[%clk 0:00:09]} 35. Ke1 {[%clk 0:00:07]}  Rxc6 {[%clk 0:00:08]} 36. g3 {[%clk 0:00:06]}  Nc3 {[%clk 0:00:05]} 37. Nxc3 {[%clk 0:00:05]}  Rxc3 {[%clk 0:00:06]} 38. Kd2 {[%clk 0:00:05]}  Rc2+ {[%clk 0:00:06]} 39. Ke3 {[%clk 0:00:05]}  Rxe2+ {[%clk 0:00:06]} 40. Kxe2 {[%clk 0:00:04]}  Bxa8 {[%clk 0:00:06]} 41. Ke3 {[%clk 0:00:05]}  f5 {[%clk 0:00:07]} 42. Kd3 {[%clk 0:00:06]}  Kf6 {[%clk 0:00:08]} 0-1

[Event "January 9 Early 2024"]
[Site "https://www.chess.com"]
[Date "2024.01.11"]
[Round "8"]
[White "Soraas, Torben"]
[Black "Gavrilov, Maxim"]
[Result "0-1"]
[Board "132"]
[TimeControl "180+1"]
[WhiteFideId "1503529"]
[BlackFideId "24271454"]
[WhiteElo "2274"]
[BlackElo "2443"]
[WhiteTeam "NOR"]
[BlackTeam "RUS"]
[WhiteClock "0:00:03"]
[BlackClock "0:00:22"]

1. e4 {[%clk 0:03:00]}  c5 {[%clk 0:02:57]} 2. Nc3 {[%clk 0:02:59]}  d6 {[%clk 0:02:55]} 3. g3 {[%clk 0:03:00]}  Nc6 {[%clk 0:02:54]} 4. Bg2 {[%clk 0:03:01]}  g6 {[%clk 0:02:54]} 5. d3 {[%clk 0:03:02]}  Bg7 {[%clk 0:02:54]} 6. Nge2 {[%clk 0:03:01]}  e6 {[%clk 0:02:55]} 7. Be3 {[%clk 0:03:01]}  Nge7 {[%clk 0:02:55]} 8. Qd2 {[%clk 0:03:00]}  Rb8 {[%clk 0:02:53]} 9. O-O {[%clk 0:02:58]}  b5 {[%clk 0:02:53]} 10. Bh6 {[%clk 0:02:59]}  O-O {[%clk 0:02:48]} 11. Bxg7 {[%clk 0:02:58]}  Kxg7 {[%clk 0:02:48]} 12. a3 {[%clk 0:02:54]}  a5 {[%clk 0:02:47]} 13. Nd1 {[%clk 0:02:54]}  b4 {[%clk 0:02:42]} 14. axb4 {[%clk 0:02:55]}  axb4 {[%clk 0:02:43]} 15. Ne3 {[%clk 0:02:56]}  Nd4 {[%clk 0:02:34]} 16. Nc1 {[%clk 0:02:42]}  e5 {[%clk 0:02:14]} 17. c3 {[%clk 0:02:29]}  Ndc6 {[%clk 0:02:12]} 18. Ne2 {[%clk 0:02:27]}  Be6 {[%clk 0:02:09]} 19. d4 {[%clk 0:02:26]}  cxd4 {[%clk 0:02:08]} 20. cxd4 {[%clk 0:02:27]}  exd4 {[%clk 0:02:05]} 21. Nxd4 {[%clk 0:02:27]}  Nxd4 {[%clk 0:01:56]} 22. Qxd4+ {[%clk 0:02:28]}  Kg8 {[%clk 0:01:56]} 23. Ra6 {[%clk 0:02:19]}  Nc8 {[%clk 0:01:51]} 24. Rd1 {[%clk 0:01:51]}  Qc7 {[%clk 0:01:39]} 25. h4 {[%clk 0:01:44]}  Qc5 {[%clk 0:01:37]} 26. Qd2 {[%clk 0:01:33]}  Rb6 {[%clk 0:01:34]} 27. Rxb6 {[%clk 0:01:30]}  Qxb6 {[%clk 0:01:35]} 28. h5 {[%clk 0:01:29]}  Qc5 {[%clk 0:01:28]} 29. Bf3 {[%clk 0:01:17]}  b3 {[%clk 0:01:24]} 30. Kg2 {[%clk 0:01:14]}  Qe5 {[%clk 0:01:21]} 31. Rh1 {[%clk 0:01:00]}  Nb6 {[%clk 0:01:19]} 32. Bg4 {[%clk 0:00:49]}  Bxg4 {[%clk 0:01:16]} 33. Nxg4 {[%clk 0:00:46]}  Qxe4+ {[%clk 0:01:16]} 34. f3 {[%clk 0:00:47]}  Qc2 {[%clk 0:01:14]} 35. Qxc2 {[%clk 0:00:24]}  bxc2 {[%clk 0:01:15]} 36. hxg6 {[%clk 0:00:17]}  Rc8 {[%clk 0:00:35]} 37. gxh7+ {[%clk 0:00:16]}  Kh8 {[%clk 0:00:35]} 38. Rc1 {[%clk 0:00:17]}  Nd5 {[%clk 0:00:31]} 39. Kf2 {[%clk 0:00:14]}  Nb4 {[%clk 0:00:30]} 40. Ke2 {[%clk 0:00:13]}  Na2 {[%clk 0:00:28]} 41. Kd2 {[%clk 0:00:12]}  Nxc1 {[%clk 0:00:26]} 42. Kxc1 {[%clk 0:00:13]}  Kxh7 {[%clk 0:00:26]} 43. Ne3 {[%clk 0:00:14]}  Rg8 {[%clk 0:00:22]} 44. g4 {[%clk 0:00:13]}  Kg6 {[%clk 0:00:22]} 45. Kxc2 {[%clk 0:00:12]}  Kg5 {[%clk 0:00:22]} 46. Nf5 {[%clk 0:00:04]}  Rc8+ {[%clk 0:00:22]} 47. Kd3 {[%clk 0:00:03]}  Kf4 {[%clk 0:00:22]} 0-1

[Event "January 9 Early 2024"]
[Site "https://www.chess.com"]
[Date "2024.01.11"]
[Round "8"]
[White "Boruchovsky, Avital"]
[Black "Isajevsky, Anton"]
[Result "1-0"]
[Board "133"]
[TimeControl "180+1"]
[WhiteFideId "2800055"]
[BlackFideId "4142500"]
[WhiteElo "2777"]
[BlackElo "2639"]
[WhiteTeam "ISR"]
[BlackTeam "RUS"]
[WhiteClock "0:00:12"]
[BlackClock "0:00:01"]

1. e4 {[%clk 0:03:00]}  c5 {[%clk 0:02:59]} 2. Nc3 {[%clk 0:03:00]}  d6 {[%clk 0:02:59]} 3. g3 {[%clk 0:02:59]}  g6 {[%clk 0:02:59]} 4. Bg2 {[%clk 0:02:59]}  Bg7 {[%clk 0:02:59]} 5. Nge2 {[%clk 0:03:00]}  Nc6 {[%clk 0:03:00]} 6. O-O {[%clk 0:03:00]}  e6 {[%clk 0:02:56]} 7. f4 {[%clk 0:03:00]}  Nge7 {[%clk 0:02:57]} 8. d3 {[%clk 0:02:58]}  O-O {[%clk 0:02:56]} 9. Be3 {[%clk 0:02:57]}  Nd4 {[%clk 0:02:56]} 10. Kh1 {[%clk 0:02:57]}  Rb8 {[%clk 0:02:53]} 11. Bg1 {[%clk 0:02:56]}  Nxe2 {[%clk 0:02:44]} 12. Qxe2 {[%clk 0:02:57]}  Nc6 {[%clk 0:02:31]} 13. Nd1 {[%clk 0:02:56]}  b5 {[%clk 0:02:21]} 14. a3 {[%clk 0:02:51]}  Qc7 {[%clk 0:01:59]} 15. c3 {[%clk 0:02:49]}  a5 {[%clk 0:01:56]} 16. Ne3 {[%clk 0:02:47]}  b4 {[%clk 0:01:53]} 17. axb4 {[%clk 0:02:48]}  cxb4 {[%clk 0:01:40]} 18. d4 {[%clk 0:02:31]}  Bd7 {[%clk 0:01:21]} 19. f5 {[%clk 0:02:31]}  Qd8 {[%clk 0:01:06]} 20. Nc4 {[%clk 0:02:08]}  d5 {[%clk 0:00:53]} 21. exd5 {[%clk 0:02:00]}  exd5 {[%clk 0:00:52]} 22. Bxd5 {[%clk 0:02:00]}  Ne7 {[%clk 0:00:50]} 23. Bg2 {[%clk 0:01:55]}  Nxf5 {[%clk 0:00:31]} 24. Nxa5 {[%clk 0:01:55]}  Re8 {[%clk 0:00:28]} 25. Qf2 {[%clk 0:01:45]}  bxc3 {[%clk 0:00:26]} 26. bxc3 {[%clk 0:01:45]}  Qc7 {[%clk 0:00:15]} 27. g4 {[%clk 0:01:33]}  Nd6 {[%clk 0:00:14]} 28. Qg3 {[%clk 0:01:32]}  Bb5 {[%clk 0:00:08]} 29. Rfe1 {[%clk 0:01:28]}  Rxe1 {[%clk 0:00:05]} 30. Rxe1 {[%clk 0:01:29]}  Bf8 {[%clk 0:00:03]} 31. Nb3 {[%clk 0:01:16]}  Rc8 {[%clk 0:00:03]} 32. Nc5 {[%clk 0:01:14]}  Nc4 {[%clk 0:00:02]} 33. Qxc7 {[%clk 0:01:10]}  Rxc7 {[%clk 0:00:03]} 34. Bf2 {[%clk 0:01:01]}  Kg7 {[%clk 0:00:01]} 35. Bg3 {[%clk 0:00:45]}  Ra7 {[%clk 0:00:02]} 36. Ne4 {[%clk 0:00:23]}  Ra2 {[%clk 0:00:01]} 37. d5 {[%clk 0:00:22]}  Ba4 {[%clk 0:00:01]} 38. d6 {[%clk 0:00:20]}  Nd2 {[%clk 0:00:01]} 39. Be5+ {[%clk 0:00:19]}  Kh6 {[%clk 0:00:01]} 40. Nxd2 {[%clk 0:00:12]}  Rxd2 {[%clk 0:00:01]} 41. Bf4+ {[%clk 0:00:12]} 1-0

[Event "January 9 Early 2024"]
[Site "https://www.chess.com"]
[Date "2024.01.11"]
[Round "8"]
[White "Nouali, Mohamed"]
[Black "Saha, Ananda"]
[Result "1-0"]
[Board "135"]
[TimeControl "180+1"]
[WhiteFideId "5502462"]
[BlackFideId "2619644"]
[WhiteElo "2586"]
[BlackElo "2475"]
[WhiteTeam "TUN"]
[BlackTeam "CAN"]
[WhiteClock "0:00:17"]
[BlackClock "0:00:01"]

1. e4 {[%clk 0:02:59]}  e6 {[%clk 0:03:00]} 2. d4 {[%clk 0:02:59]}  d5 {[%clk 0:03:00]} 3. Nc3 {[%clk 0:02:58]}  Nf6 {[%clk 0:03:00]} 4. Bg5 {[%clk 0:02:58]}  dxe4 {[%clk 0:03:00]} 5. Nxe4 {[%clk 0:02:58]}  Be7 {[%clk 0:03:01]} 6. Bxf6 {[%clk 0:02:58]}  gxf6 {[%clk 0:03:01]} 7. Nf3 {[%clk 0:02:58]}  f5 {[%clk 0:03:02]} 8. Nc3 {[%clk 0:02:59]}  a6 {[%clk 0:03:03]} 9. g3 {[%clk 0:02:59]}  b5 {[%clk 0:03:03]} 10. Bg2 {[%clk 0:02:59]}  Bb7 {[%clk 0:02:59]} 11. O-O {[%clk 0:02:59]}  Qd6 {[%clk 0:02:56]} 12. Re1 {[%clk 0:02:58]}  Nd7 {[%clk 0:02:56]} 13. a4 {[%clk 0:02:37]}  b4 {[%clk 0:02:56]} 14. Ne2 {[%clk 0:02:37]}  h5 {[%clk 0:02:36]} 15. Nf4 {[%clk 0:02:28]}  O-O-O {[%clk 0:02:29]} 16. c4 {[%clk 0:02:23]}  Be4 {[%clk 0:02:10]} 17. c5 {[%clk 0:02:10]}  Qc6 {[%clk 0:02:10]} 18. d5 {[%clk 0:02:07]}  exd5 {[%clk 0:02:06]} 19. Nd4 {[%clk 0:02:05]}  Qxc5 {[%clk 0:02:01]} 20. Rc1 {[%clk 0:02:05]}  Qb6 {[%clk 0:01:47]} 21. Nc6 {[%clk 0:01:59]}  Bc5 {[%clk 0:01:33]} 22. Rxe4 {[%clk 0:01:18]}  dxe4 {[%clk 0:01:04]} 23. Nd5 {[%clk 0:01:08]}  Qxc6 {[%clk 0:00:39]} 24. Ne7+ {[%clk 0:01:05]}  Bxe7 {[%clk 0:00:39]} 25. Rxc6 {[%clk 0:01:04]}  Ne5 {[%clk 0:00:38]} 26. Qc1 {[%clk 0:00:50]}  Nxc6 {[%clk 0:00:32]} 27. Qxc6 {[%clk 0:00:51]}  Rd1+ {[%clk 0:00:20]} 28. Bf1 {[%clk 0:00:51]}  Rhd8 {[%clk 0:00:21]} 29. Kg2 {[%clk 0:00:48]}  Rxf1 {[%clk 0:00:09]} 30. Kxf1 {[%clk 0:00:49]}  Rd6 {[%clk 0:00:08]} 31. Qe8+ {[%clk 0:00:45]}  Bd8 {[%clk 0:00:08]} 32. Qxf7 {[%clk 0:00:45]}  Rf6 {[%clk 0:00:05]} 33. Qxh5 {[%clk 0:00:44]}  Kd7 {[%clk 0:00:04]} 34. h4 {[%clk 0:00:41]}  Be7 {[%clk 0:00:04]} 35. Qe2 {[%clk 0:00:40]}  c5 {[%clk 0:00:03]} 36. h5 {[%clk 0:00:39]}  Rc6 {[%clk 0:00:03]} 37. Qc4 {[%clk 0:00:38]}  Kd6 {[%clk 0:00:02]} 38. h6 {[%clk 0:00:38]}  Ke5 {[%clk 0:00:03]} 39. h7 {[%clk 0:00:37]}  Rh6 {[%clk 0:00:03]} 40. Qf7 {[%clk 0:00:29]}  Bf6 {[%clk 0:00:04]} 41. b3 {[%clk 0:00:23]}  c4 {[%clk 0:00:03]} 42. Qxc4 {[%clk 0:00:23]}  Rxh7 {[%clk 0:00:03]} 43. Qxb4 {[%clk 0:00:18]}  Rd7 {[%clk 0:00:02]} 44. Qa5+ {[%clk 0:00:17]}  Kd4 {[%clk 0:00:01]} 45. Qxf5 {[%clk 0:00:17]} 1-0

[Event "January 9 Early 2024"]
[Site "https://www.chess.com"]
[Date "2024.01.11"]
[Round "8"]
[White "Krzywda, Andrzej"]
[Black "Herman, Matthew"]
[Result "1/2-1/2"]
[Board "136"]
[TimeControl "180+1"]
[WhiteFideId "1114565"]
[BlackFideId "2028964"]
[WhiteElo "2400"]
[BlackElo "2508"]
[WhiteTeam "POL"]
[BlackTeam "USA"]
[WhiteClock "0:00:19"]
[BlackClock "0:00:08"]

1. e4 {[%clk 0:03:00]}  e5 {[%clk 0:03:00]} 2. Nf3 {[%clk 0:03:00]}  Nc6 {[%clk 0:03:00]} 3. Bb5 {[%clk 0:03:00]}  a6 {[%clk 0:03:00]} 4. Ba4 {[%clk 0:03:01]}  Nf6 {[%clk 0:03:00]} 5. O-O {[%clk 0:03:02]}  Be7 {[%clk 0:03:00]} 6. Re1 {[%clk 0:03:01]}  b5 {[%clk 0:03:00]} 7. Bb3 {[%clk 0:03:02]}  O-O {[%clk 0:03:01]} 8. a4 {[%clk 0:03:02]}  b4 {[%clk 0:03:00]} 9. d4 {[%clk 0:03:02]}  d6 {[%clk 0:03:01]} 10. dxe5 {[%clk 0:03:01]}  dxe5 {[%clk 0:03:01]} 11. Nbd2 {[%clk 0:03:01]}  Bc5 {[%clk 0:03:00]} 12. a5 {[%clk 0:02:54]}  h6 {[%clk 0:02:53]} 13. h3 {[%clk 0:02:53]}  Re8 {[%clk 0:02:45]} 14. Qe2 {[%clk 0:02:51]}  Nd4 {[%clk 0:02:43]} 15. Nxd4 {[%clk 0:02:49]}  Bxd4 {[%clk 0:02:43]} 16. Nf3 {[%clk 0:02:36]}  c5 {[%clk 0:02:22]} 17. Nxd4 {[%clk 0:02:19]}  cxd4 {[%clk 0:01:58]} 18. Bd2 {[%clk 0:02:02]}  Qe7 {[%clk 0:01:43]} 19. Ra4 {[%clk 0:01:56]}  Rb8 {[%clk 0:01:39]} 20. Bc4 {[%clk 0:01:55]}  Bd7 {[%clk 0:01:30]} 21. Raa1 {[%clk 0:01:53]}  Bb5 {[%clk 0:01:29]} 22. Bxb5 {[%clk 0:01:35]}  Rxb5 {[%clk 0:01:29]} 23. Qc4 {[%clk 0:01:24]}  Qe6 {[%clk 0:01:12]} 24. Qxe6 {[%clk 0:01:10]}  Rxe6 {[%clk 0:01:13]} 25. Ra4 {[%clk 0:01:06]}  Rc6 {[%clk 0:00:56]} 26. Rxb4 {[%clk 0:00:56]}  Rxb4 {[%clk 0:00:44]} 27. Bxb4 {[%clk 0:00:57]}  Rxc2 {[%clk 0:00:44]} 28. Bd6 {[%clk 0:00:57]}  d3 {[%clk 0:00:33]} 29. Kf1 {[%clk 0:00:42]}  Nxe4 {[%clk 0:00:25]} 30. Bxe5 {[%clk 0:00:38]}  Rxf2+ {[%clk 0:00:10]} 31. Kg1 {[%clk 0:00:38]}  Re2 {[%clk 0:00:03]} 32. Rd1 {[%clk 0:00:26]}  d2 {[%clk 0:00:03]} 33. Kf1 {[%clk 0:00:26]}  Re3 {[%clk 0:00:02]} 34. Bf4 {[%clk 0:00:25]}  Rd3 {[%clk 0:00:01]} 35. Ke2 {[%clk 0:00:23]}  Rb3 {[%clk 0:00:02]} 36. Be5 {[%clk 0:00:18]}  f6 {[%clk 0:00:02]} 37. Bd4 {[%clk 0:00:18]}  Kf7 {[%clk 0:00:02]} 38. g4 {[%clk 0:00:18]}  Ke6 {[%clk 0:00:03]} 39. Bc3 {[%clk 0:00:16]}  Rxc3 {[%clk 0:00:02]} 40. bxc3 {[%clk 0:00:16]}  Nxc3+ {[%clk 0:00:03]} 41. Kxd2 {[%clk 0:00:17]}  Nxd1 {[%clk 0:00:04]} 42. Kxd1 {[%clk 0:00:18]}  f5 {[%clk 0:00:04]} 43. gxf5+ {[%clk 0:00:17]}  Kxf5 {[%clk 0:00:05]} 44. Ke2 {[%clk 0:00:18]}  g5 {[%clk 0:00:06]} 45. Kf3 {[%clk 0:00:18]}  h5 {[%clk 0:00:07]} 46. Kg3 {[%clk 0:00:18]}  Ke4 {[%clk 0:00:07]} 47. Kf2 {[%clk 0:00:17]}  Kf4 {[%clk 0:00:08]} 48. Kg2 {[%clk 0:00:18]}  Ke3 {[%clk 0:00:08]} 49. Kg3 {[%clk 0:00:18]}  Ke4 {[%clk 0:00:09]} 50. Kf2 {[%clk 0:00:18]}  Kf4 {[%clk 0:00:09]} 51. Kg2 {[%clk 0:00:19]}  Ke3 {[%clk 0:00:09]} 52. Kg3 {[%clk 0:00:19]}  Ke4 {[%clk 0:00:08]} 1/2-1/2

[Event "January 9 Early 2024"]
[Site "https://www.chess.com"]
[Date "2024.01.11"]
[Round "8"]
[White "Vokhidov, Shamsiddin"]
[Black "Hayrapetyan, Hovik"]
[Result "1-0"]
[Board "137"]
[TimeControl "180+1"]
[WhiteFideId "14204223"]
[BlackFideId "13302639"]
[WhiteElo "2998"]
[BlackElo "2810"]
[WhiteTeam "UZB"]
[BlackTeam "ARM"]
[WhiteClock "0:00:55"]
[BlackClock "0:00:03"]

1. e4 {[%clk 0:03:00]}  c5 {[%clk 0:02:59]} 2. Nf3 {[%clk 0:03:00]}  d6 {[%clk 0:03:00]} 3. d4 {[%clk 0:03:00]}  cxd4 {[%clk 0:03:00]} 4. Nxd4 {[%clk 0:03:01]}  Nf6 {[%clk 0:03:01]} 5. Nc3 {[%clk 0:03:02]}  a6 {[%clk 0:03:02]} 6. a4 {[%clk 0:03:03]}  e5 {[%clk 0:03:00]} 7. Nf3 {[%clk 0:03:03]}  h6 {[%clk 0:02:45]} 8. Nd2 {[%clk 0:03:03]}  Be6 {[%clk 0:02:36]} 9. Nc4 {[%clk 0:03:02]}  Nc6 {[%clk 0:02:31]} 10. Ne3 {[%clk 0:03:01]}  Nb4 {[%clk 0:02:31]} 11. Bc4 {[%clk 0:02:58]}  Rc8 {[%clk 0:02:22]} 12. Bxe6 {[%clk 0:02:51]}  fxe6 {[%clk 0:02:23]} 13. O-O {[%clk 0:02:51]}  Be7 {[%clk 0:02:17]} 14. Qe2 {[%clk 0:02:48]}  O-O {[%clk 0:02:15]} 15. Rd1 {[%clk 0:02:48]}  Nc6 {[%clk 0:01:48]} 16. Ng4 {[%clk 0:02:48]}  Nd4 {[%clk 0:01:45]} 17. Nxf6+ {[%clk 0:02:48]}  Bxf6 {[%clk 0:01:40]} 18. Qd3 {[%clk 0:02:49]}  Qb6 {[%clk 0:01:20]} 19. a5 {[%clk 0:02:37]}  Qc6 {[%clk 0:00:47]} 20. Be3 {[%clk 0:02:37]}  Rf7 {[%clk 0:00:42]} 21. Rd2 {[%clk 0:02:33]}  Qc4 {[%clk 0:00:39]} 22. Qf1 {[%clk 0:02:05]}  Rfc7 {[%clk 0:00:24]} 23. Qd1 {[%clk 0:02:01]}  Qc6 {[%clk 0:00:18]} 24. Qg4 {[%clk 0:02:00]}  Qe8 {[%clk 0:00:15]} 25. Bxh6 {[%clk 0:01:59]}  Kh7 {[%clk 0:00:10]} 26. Be3 {[%clk 0:01:59]}  Qg6 {[%clk 0:00:10]} 27. Qh3+ {[%clk 0:01:55]}  Kg8 {[%clk 0:00:09]} 28. Bxd4 {[%clk 0:01:56]}  exd4 {[%clk 0:00:09]} 29. Qxe6+ {[%clk 0:01:56]}  Kh7 {[%clk 0:00:05]} 30. Nd5 {[%clk 0:01:52]}  Rxc2 {[%clk 0:00:04]} 31. Nxf6+ {[%clk 0:01:42]}  Qxf6 {[%clk 0:00:03]} 32. Qxf6 {[%clk 0:01:33]}  gxf6 {[%clk 0:00:04]} 33. Rxd4 {[%clk 0:01:33]}  Rxb2 {[%clk 0:00:05]} 34. Rxd6 {[%clk 0:01:31]}  Kg7 {[%clk 0:00:05]} 35. g3 {[%clk 0:01:21]}  Rcc2 {[%clk 0:00:05]} 36. Rf1 {[%clk 0:01:20]}  Rc5 {[%clk 0:00:03]} 37. Rd5 {[%clk 0:01:14]}  Rxd5 {[%clk 0:00:02]} 38. exd5 {[%clk 0:01:14]}  Rb5 {[%clk 0:00:02]} 39. d6 {[%clk 0:01:12]}  Kf8 {[%clk 0:00:02]} 40. Re1 {[%clk 0:01:09]}  Rd5 {[%clk 0:00:02]} 41. Re7 {[%clk 0:01:04]}  Rxa5 {[%clk 0:00:02]} 42. Rxb7 {[%clk 0:01:03]}  Rd5 {[%clk 0:00:02]} 43. d7 {[%clk 0:01:02]}  Ke7 {[%clk 0:00:01]} 44. Ra7 {[%clk 0:01:01]}  a5 {[%clk 0:00:01]} 45. Kg2 {[%clk 0:01:01]}  f5 {[%clk 0:00:02]} 46. Kf3 {[%clk 0:01:01]}  Kd8 {[%clk 0:00:02]} 47. Kf4 {[%clk 0:01:01]}  Ke7 {[%clk 0:00:03]} 48. h4 {[%clk 0:01:00]}  Kf6 {[%clk 0:00:01]} 49. Ke3 {[%clk 0:00:59]}  Ke7 {[%clk 0:00:01]} 50. h5 {[%clk 0:00:58]}  f4+ {[%clk 0:00:01]} 51. Kxf4 {[%clk 0:00:58]}  Rxh5 {[%clk 0:00:02]} 52. g4 {[%clk 0:00:59]}  Rb5 {[%clk 0:00:02]} 53. g5 {[%clk 0:00:59]}  Rb4+ {[%clk 0:00:02]} 54. Kf5 {[%clk 0:00:59]}  a4 {[%clk 0:00:03]} 55. g6 {[%clk 0:00:59]}  Rd4 {[%clk 0:00:03]} 56. g7 {[%clk 0:00:55]} 1-0

[Event "January 9 Early 2024"]
[Site "https://www.chess.com"]
[Date "2024.01.11"]
[Round "8"]
[White "Halkias, Stelios"]
[Black "Maltsevskaya, Aleksandra"]
[Result "1-0"]
[Board "139"]
[TimeControl "180+1"]
[WhiteFideId "4201809"]
[BlackFideId "24174041"]
[WhiteElo "2723"]
[BlackElo "2559"]
[WhiteTeam "GRE"]
[BlackTeam "POL"]
[WhiteClock "0:00:26"]
[BlackClock "0:00:01"]

1. Nf3 {[%clk 0:03:00]}  Nf6 {[%clk 0:02:48]} 2. c4 {[%clk 0:03:00]}  g6 {[%clk 0:02:46]} 3. Nc3 {[%clk 0:02:59]}  Bg7 {[%clk 0:02:46]} 4. g3 {[%clk 0:02:58]}  d6 {[%clk 0:02:46]} 5. d4 {[%clk 0:02:58]}  O-O {[%clk 0:02:47]} 6. Bg2 {[%clk 0:02:58]}  Nbd7 {[%clk 0:02:47]} 7. O-O {[%clk 0:02:58]}  e5 {[%clk 0:02:48]} 8. e4 {[%clk 0:02:58]}  exd4 {[%clk 0:02:48]} 9. Nxd4 {[%clk 0:02:58]}  Nc5 {[%clk 0:02:48]} 10. Re1 {[%clk 0:02:58]}  Ng4 {[%clk 0:02:48]} 11. Nf3 {[%clk 0:02:28]}  Be6 {[%clk 0:02:42]} 12. h3 {[%clk 0:02:24]}  Ne5 {[%clk 0:02:42]} 13. Nxe5 {[%clk 0:02:08]}  Bxe5 {[%clk 0:02:30]} 14. Nd5 {[%clk 0:01:54]}  c6 {[%clk 0:02:24]} 15. Ne3 {[%clk 0:01:53]}  Qb6 {[%clk 0:01:59]} 16. Qc2 {[%clk 0:01:40]}  Rfe8 {[%clk 0:01:54]} 17. Rb1 {[%clk 0:01:39]}  a5 {[%clk 0:01:53]} 18. Bd2 {[%clk 0:01:38]}  Bd4 {[%clk 0:01:39]} 19. Bc3 {[%clk 0:01:33]}  Bxc3 {[%clk 0:01:38]} 20. Qxc3 {[%clk 0:01:33]}  Qb4 {[%clk 0:01:35]} 21. Qc2 {[%clk 0:01:29]}  Rad8 {[%clk 0:01:27]} 22. f4 {[%clk 0:01:26]}  Bc8 {[%clk 0:01:05]} 23. Kh2 {[%clk 0:01:24]}  Re7 {[%clk 0:01:03]} 24. f5 {[%clk 0:01:23]}  Rde8 {[%clk 0:01:02]} 25. Ng4 {[%clk 0:01:22]}  Nd7 {[%clk 0:00:50]} 26. a3 {[%clk 0:01:17]}  Qb6 {[%clk 0:00:32]} 27. Qc3 {[%clk 0:01:15]}  Ne5 {[%clk 0:00:30]} 28. Nf6+ {[%clk 0:01:14]}  Kg7 {[%clk 0:00:30]} 29. Nxe8+ {[%clk 0:01:14]}  Rxe8 {[%clk 0:00:31]} 30. b4 {[%clk 0:01:12]}  axb4 {[%clk 0:00:29]} 31. axb4 {[%clk 0:01:12]}  Qd8 {[%clk 0:00:28]} 32. Rbd1 {[%clk 0:01:03]}  h5 {[%clk 0:00:27]} 33. c5 {[%clk 0:00:48]}  Qf6 {[%clk 0:00:27]} 34. Qd4 {[%clk 0:00:47]}  d5 {[%clk 0:00:19]} 35. fxg6 {[%clk 0:00:36]}  fxg6 {[%clk 0:00:10]} 36. Rf1 {[%clk 0:00:36]}  Qe7 {[%clk 0:00:08]} 37. exd5 {[%clk 0:00:36]}  h4 {[%clk 0:00:04]} 38. Qxh4 {[%clk 0:00:32]}  Qxh4 {[%clk 0:00:03]} 39. gxh4 {[%clk 0:00:33]}  cxd5 {[%clk 0:00:04]} 40. Bxd5 {[%clk 0:00:31]}  Bf5 {[%clk 0:00:03]} 41. Rfe1 {[%clk 0:00:30]}  Kf6 {[%clk 0:00:03]} 42. Kg3 {[%clk 0:00:31]}  Rb8 {[%clk 0:00:02]} 43. Bg2 {[%clk 0:00:29]}  Nd3 {[%clk 0:00:02]} 44. Rf1 {[%clk 0:00:27]}  Nxb4 {[%clk 0:00:03]} 45. Rd6+ {[%clk 0:00:27]}  Kf7 {[%clk 0:00:02]} 46. h5 {[%clk 0:00:27]}  Kg7 {[%clk 0:00:02]} 47. hxg6 {[%clk 0:00:27]}  Bxg6 {[%clk 0:00:02]} 48. Rb6 {[%clk 0:00:27]}  Nd3 {[%clk 0:00:01]} 49. c6 {[%clk 0:00:26]} 1-0